Workbook

Sheet Отчет о движении денеж. средств
B1: Движение денежных средств Отчет
B3: Начало финансового года: | D3: Пусковые средства | E3: =UPPER(TEXT(ДатаНачалаФинансовогоГода,"МММ")) -> ЯНВ | F3: =UPPER(TEXT(EOMONTH(ДатаНачалаФинансовогоГода,1),"МММ")) -> ФЕВ | G3: =UPPER(TEXT(EOMONTH(ДатаНачалаФинансовогоГода,2),"МММ")) -> МАР | H3: =UPPER(TEXT(EOMONTH(ДатаНачалаФинансовогоГода,3),"МММ")) -> АПР | I3: =UPPER(TEXT(EOMONTH(ДатаНачалаФинансовогоГода,4),"МММ")) -> МАЙ | J3: =UPPER(TEXT(EOMONTH(ДатаНачалаФинансовогоГода,5),"МММ")) -> ИЮН | K3: =UPPER(TEXT(EOMONTH(ДатаНачалаФинансовогоГода,6),"МММ")) -> ИЮЛ | L3: =UPPER(TEXT(EOMONTH(ДатаНачалаФинансовогоГода,7),"МММ")) -> АВГ | M3: =UPPER(TEXT(EOMONTH(ДатаНачалаФинансовогоГода,8),"МММ")) -> СЕН | N3: =UPPER(TEXT(EOMONTH(ДатаНачалаФинансовогоГода,9),"МММ")) -> ОКТ | O3: =UPPER(TEXT(EOMONTH(ДатаНачалаФинансовогоГода,10),"МММ")) -> НОЯ | P3: =UPPER(TEXT(EOMONTH(ДатаНачалаФинансовогоГода,11),"МММ")) -> ДЕК | R3: Итого
B4: 2019-01-05 | D4: ОЦЕНКА | E4: =ДатаНачалаФинансовогоГода -> 2019-01-05 | F4: =EOMONTH(E4,0)+DAY(ДатаНачалаФинансовогоГода) -> 2019-02-05 | G4: =EOMONTH(F4,0)+DAY(ДатаНачалаФинансовогоГода) -> 2019-03-05 | H4: =EOMONTH(G4,0)+DAY(ДатаНачалаФинансовогоГода) -> 2019-04-05 | I4: =EOMONTH(H4,0)+DAY(ДатаНачалаФинансовогоГода) -> 2019-05-05 | J4: =EOMONTH(I4,0)+DAY(ДатаНачалаФинансовогоГода) -> 2019-06-05 | K4: =EOMONTH(J4,0)+DAY(ДатаНачалаФинансовогоГода) -> 2019-07-05 | L4: =EOMONTH(K4,0)+DAY(ДатаНачалаФинансовогоГода) -> 2019-08-05 | M4: =EOMONTH(L4,0)+DAY(ДатаНачалаФинансовогоГода) -> 2019-09-05 | N4: =EOMONTH(M4,0)+DAY(ДатаНачалаФинансовогоГода) -> 2019-10-05 | O4: =EOMONTH(N4,0)+DAY(ДатаНачалаФинансовогоГода) -> 2019-11-05 | P4: =EOMONTH(O4,0)+DAY(ДатаНачалаФинансовогоГода) -> 2019-12-05 | R4: Оценка средств
B6: Кассовая наличность (начало месяца) | D6: 100000 | E6: =D51 -> 58000 | F6: =E51 -> -91221.94 | G6: =F51 -> -240443.88 | H6: =G51 -> -389665.82 | I6: -538887.76 | J6: -688109.7 | K6: -837331.64 | L6: -986553.58 | M6: -1135775.52 | N6: -1284997.46 | O6: -1434219.4 | P6: -1583441.34 | R6: =P6 -> -1583441.34
B8: Денежные поступления
B9: Продажи за наличный расчет | E9: =Доходы!E8 -> 0 | F9: =Доходы!E10 -> 0 | G9: =Доходы!E12 -> 0 | H9: =Доходы!E14 -> 0 | I9: =Доходы!E16 -> 0 | J9: =Доходы!E18 -> 0 | R9: =SUM('Отчет о движении денеж. средств'!$D9:$P9) -> 0
B10: Продажи по платежным картам | E10: =Доходы!G38 -> 0 | F10: 0 | G10: 0 | H10: 0 | I10: 0 | J10: 0 | R10: =SUM('Отчет о движении денеж. средств'!$D10:$P10) -> 0
B11: Поступления с расчетных счетов | E11: =Доходы!E93 -> 0 | F11: =Доходы!E106 -> 0 | G11: =Доходы!E123 -> 0 | H11: =Доходы!E149 -> 0 | I11: 0 | J11: =Доходы!E198 -> 0 | R11: =SUM('Отчет о движении денеж. средств'!$D11:$P11) -> 0
B12: Итого | D12: =SUBTOTAL(109,'Отчет о движении денеж. средств'!$D$9:$D$11) -> 0 | E12: =SUBTOTAL(109,'Отчет о движении денеж. средств'!$E$9:$E$11) -> 0 | F12: =SUBTOTAL(109,'Отчет о движении денеж. средств'!$F$9:$F$11) -> 0 | G12: =SUBTOTAL(109,'Отчет о движении денеж. средств'!$G$9:$G$11) -> 0 | H12: =SUBTOTAL(109,'Отчет о движении денеж. средств'!$H$9:$H$11) -> 0 | I12: =SUBTOTAL(109,'Отчет о движении денеж. средств'!$I$9:$I$11) -> 0 | J12: =SUBTOTAL(109,'Отчет о движении денеж. средств'!$J$9:$J$11) -> 0 | K12: =SUBTOTAL(109,'Отчет о движении денеж. средств'!$K$9:$K$11) -> 0 | L12: =SUBTOTAL(109,'Отчет о движении денеж. средств'!$L$9:$L$11) -> 0 | M12: =SUBTOTAL(109,'Отчет о движении денеж. средств'!$M$9:$M$11) -> 0 | N12: =SUBTOTAL(109,'Отчет о движении денеж. средств'!$N$9:$N$11) -> 0 | O12: =SUBTOTAL(109,'Отчет о движении денеж. средств'!$O$9:$O$11) -> 0 | P12: =SUBTOTAL(109,'Отчет о движении денеж. средств'!$P$9:$P$11) -> 0 | R12: =SUBTOTAL(109,'Отчет о движении денеж. средств'!$R$9:$R$11) -> 0
B13: Общая сумма доступных средств (до обналичивания) | D13: =D6+SUM('Отчет о движении денеж. средств'!$D$9:$D$11) -> 100000 | E13: =E6+SUM('Отчет о движении денеж. средств'!$E$9:$E$11) -> 58000 | F13: =F6+SUM('Отчет о движении денеж. средств'!$F$9:$F$11) -> -91221.94 | G13: =G6+SUM('Отчет о движении денеж. средств'!$G$9:$G$11) -> -240443.88 | H13: =H6+SUM('Отчет о движении денеж. средств'!$H$9:$H$11) -> -389665.82 | I13: =I6+SUM('Отчет о движении денеж. средств'!$I$9:$I$11) -> -538887.76 | J13: =J6+SUM('Отчет о движении денеж. средств'!$J$9:$J$11) -> -688109.7 | K13: =K6+SUM('Отчет о движении денеж. средств'!$K$9:$K$11) -> -837331.64 | L13: =L6+SUM('Отчет о движении денеж. средств'!$L$9:$L$11) -> -986553.58 | M13: =M6+SUM('Отчет о движении денеж. средств'!$M$9:$M$11) -> -1135775.52 | N13: =N6+SUM('Отчет о движении денеж. средств'!$N$9:$N$11) -> -1284997.46 | O13: =O6+SUM('Отчет о движении денеж. средств'!$O$9:$O$11) -> -1434219.4 | P13: =P6+SUM('Отчет о движении денеж. средств'!$P$9:$P$11) -> -1583441.34 | R13: =R6+SUM('Отчет о движении денеж. средств'!$R$9:$R$11) -> -1583441.34
B15: Денежные затраты
B16: Покупки (товаров) | R16: =SUM('Отчет о движении денеж. средств'!$D16:$P16) -> 0
B17: Покупки (уточнить) | R17: =SUM('Отчет о движении денеж. средств'!$D17:$P17) -> 0
B18: Покупки (уточнить) | R18: =SUM('Отчет о движении денеж. средств'!$D18:$P18) -> 0
B19: Валовая заработная плата (точное снятие со счета) | R19: =SUM('Отчет о движении денеж. средств'!$D19:$P19) -> 0
B20: Расходы по оплате труда (оклады) | E20: 43774 | F20: 43774 | G20: 43774 | H20: 43774 | I20: 43774 | J20: 43774 | K20: 43774 | L20: 43774 | M20: 43774 | N20: 43774 | O20: 43774 | P20: 43774 | R20: =SUM(D20:P20) -> 525288
B21: Расходы по оплате труда (проценты) | E21: 41671.57 | F21: 41671.57 | G21: 41671.57 | H21: 41671.57 | I21: 41671.57 | J21: 41671.57 | K21: 41671.57 | L21: 41671.57 | M21: 41671.57 | N21: 41671.57 | O21: 41671.57 | P21: 41671.57 | R21: =SUM(D21:P21) -> 500058.84
B22: Расходы по оплате труда (налоги) | E22: 13414.37 | F22: 13414.37 | G22: 13414.37 | H22: 13414.37 | I22: 13414.37 | J22: 13414.37 | K22: 13414.37 | L22: 13414.37 | M22: 13414.37 | N22: 13414.37 | O22: 13414.37 | P22: 13414.37 | R22: =SUM('Отчет о движении денеж. средств'!$D22:$P22) -> 160972.44
B23: НДФЛ | E23: 5496 | F23: 5496 | G23: 5496 | H23: 5496 | I23: 5496 | J23: 5496 | K23: 5496 | L23: 5496 | M23: 5496 | N23: 5496 | O23: 5496 | P23: 5496 | R23: =SUM('Отчет о движении денеж. средств'!$D23:$P23) -> 65952
B24: Сторонние услуги | R24: =SUM('Отчет о движении денеж. средств'!$D24:$P24) -> 0
B25: Канц. И бытовые товары (офис.) | R25: =SUM('Отчет о движении денеж. средств'!$D25:$P25) -> 0
B26: Ремонт и обслуживание | R26: =SUM('Отчет о движении денеж. средств'!$D26:$P26) -> 0
B27: Реклама | D27: 12000 | E27: 12000 | F27: 12000 | G27: 12000 | H27: 12000 | I27: 12000 | J27: 12000 | K27: 12000 | L27: 12000 | M27: 12000 | N27: 12000 | O27: 12000 | P27: 12000 | R27: =SUM('Отчет о движении денеж. средств'!$D27:$P27) -> 156000
B28: Транспортные затраты | R28: =SUM('Отчет о движении денеж. средств'!$D28:$P28) -> 0
B29: Бухгалтерские и юридические услуги | D29: 5000 | E29: 5000 | F29: 5000 | G29: 5000 | H29: 5000 | I29: 5000 | J29: 5000 | K29: 5000 | L29: 5000 | M29: 5000 | N29: 5000 | O29: 5000 | P29: 5000 | R29: =SUM('Отчет о движении денеж. средств'!$D29:$P29) -> 65000
B30: Аренда | D30: 25000 | E30: 25000 | F30: 25000 | G30: 25000 | H30: 25000 | I30: 25000 | J30: 25000 | K30: 25000 | L30: 25000 | M30: 25000 | N30: 25000 | O30: 25000 | P30: 25000 | R30: =SUM('Отчет о движении денеж. средств'!$D30:$P30) -> 325000
B31: Услуги телефонной связи и интернета | E31: 2866 | F31: 2866 | G31: 2866 | H31: 2866 | I31: 2866 | J31: 2866 | K31: 2866 | L31: 2866 | M31: 2866 | N31: 2866 | O31: 2866 | P31: 2866 | R31: =SUM('Отчет о движении денеж. средств'!$D31:$P31) -> 34392
B32: Програмное обеспечение | R32: =SUM('Отчет о движении денеж. средств'!$D32:$P32) -> 0
B33: Страхование | R33: =SUM('Отчет о движении денеж. средств'!$D33:$P33) -> 0
B34: Налоги (на недвижимость и пр.) | R34: =SUM('Отчет о движении денеж. средств'!$D34:$P34) -> 0
B35: Проценты | R35: =SUM('Отчет о движении денеж. средств'!$D35:$P35) -> 0
B36: Другие затраты (уточнить) | R36: =SUM('Отчет о движении денеж. средств'!$D36:$P36) -> 0
B37: Другое (уточнить) | R37: =SUM('Отчет о движении денеж. средств'!$D37:$P37) -> 0
B38: Другое (уточнить) | R38: =SUM('Отчет о движении денеж. средств'!$D38:$P38) -> 0
B39: Разное | R39: =SUM('Отчет о движении денеж. средств'!$D39:$P39) -> 0
B40: Итого | D40: =SUBTOTAL(109,'Отчет о движении денеж. средств'!$D$16:$D$39) -> 42000 | E40: =SUBTOTAL(109,'Отчет о движении денеж. средств'!$E$16:$E$39) -> 149221.94 | F40: =SUBTOTAL(109,'Отчет о движении денеж. средств'!$F$16:$F$39) -> 149221.94 | G40: =SUBTOTAL(109,'Отчет о движении денеж. средств'!$G$16:$G$39) -> 149221.94 | H40: =SUBTOTAL(109,'Отчет о движении денеж. средств'!$H$16:$H$39) -> 149221.94 | I40: =SUBTOTAL(109,'Отчет о движении денеж. средств'!$I$16:$I$39) -> 149221.94 | J40: =SUBTOTAL(109,'Отчет о движении денеж. средств'!$J$16:$J$39) -> 149221.94 | K40: =SUBTOTAL(109,'Отчет о движении денеж. средств'!$K$16:$K$39) -> 149221.94 | L40: =SUBTOTAL(109,'Отчет о движении денеж. средств'!$L$16:$L$39) -> 149221.94 | M40: =SUBTOTAL(109,'Отчет о движении денеж. средств'!$M$16:$M$39) -> 149221.94 | N40: =SUBTOTAL(109,'Отчет о движении денеж. средств'!$N$16:$N$39) -> 149221.94 | O40: =SUBTOTAL(109,'Отчет о движении денеж. средств'!$O$16:$O$39) -> 149221.94 | P40: =SUBTOTAL(109,'Отчет о движении денеж. средств'!$P$16:$P$39) -> 149221.94 | R40: =SUBTOTAL(109,'Отчет о движении денеж. средств'!$R$16:$R$39) -> 1832663.28
B42: Денежные затраты (не связанные с прибылью и убытками)
B43: Выплата основной суммы займа | R43: =SUM('Отчет о движении денеж. средств'!$D43:$P43) -> 0
B44: Покупка капитала (уточнить) | R44: =SUM('Отчет о движении денеж. средств'!$D44:$P44) -> 0
B45: Другие пусковые затраты | R45: =SUM('Отчет о движении денеж. средств'!$D45:$P45) -> 0
B46: Резервный фонд и/или условное депонирование | R46: =SUM('Отчет о движении денеж. средств'!$D46:$P46) -> 0
B47: Вывод средств владельцами | R47: =SUM('Отчет о движении денеж. средств'!$D47:$P47) -> 0
B48: Итого | D48: =SUBTOTAL(109,'Отчет о движении денеж. средств'!$D$43:$D$47) -> 0 | E48: =SUBTOTAL(109,'Отчет о движении денеж. средств'!$E$43:$E$47) -> 0 | F48: =SUBTOTAL(109,'Отчет о движении денеж. средств'!$F$43:$F$47) -> 0 | G48: =SUBTOTAL(109,'Отчет о движении денеж. средств'!$G$43:$G$47) -> 0 | H48: =SUBTOTAL(109,'Отчет о движении денеж. средств'!$H$43:$H$47) -> 0 | I48: =SUBTOTAL(109,'Отчет о движении денеж. средств'!$I$43:$I$47) -> 0 | J48: =SUBTOTAL(109,'Отчет о движении денеж. средств'!$J$43:$J$47) -> 0 | K48: =SUBTOTAL(109,'Отчет о движении денеж. средств'!$K$43:$K$47) -> 0 | L48: =SUBTOTAL(109,'Отчет о движении денеж. средств'!$L$43:$L$47) -> 0 | M48: =SUBTOTAL(109,'Отчет о движении денеж. средств'!$M$43:$M$47) -> 0 | N48: =SUBTOTAL(109,'Отчет о движении денеж. средств'!$N$43:$N$47) -> 0 | O48: =SUBTOTAL(109,'Отчет о движении денеж. средств'!$O$43:$O$47) -> 0 | P48: =SUBTOTAL(109,'Отчет о движении денеж. средств'!$P$43:$P$47) -> 0 | R48: =SUBTOTAL(109,'Отчет о движении денеж. средств'!$R$43:$R$47) -> 0
B49: Общая сумма денежных затрат | D49: =SUM('Отчет о движении денеж. средств'!$D$16:$D$39,'Отчет о движении денеж. средств'!$D$43:$D$47) -> 42000 | E49: =SUM('Отчет о движении денеж. средств'!$E$16:$E$39,'Отчет о движении денеж. средств'!$E$43:$E$47) -> 149221.94 | F49: =SUM('Отчет о движении денеж. средств'!$F$16:$F$39,'Отчет о движении денеж. средств'!$F$43:$F$47) -> 149221.94 | G49: =SUM('Отчет о движении денеж. средств'!$G$16:$G$39,'Отчет о движении денеж. средств'!$G$43:$G$47) -> 149221.94 | H49: =SUM('Отчет о движении денеж. средств'!$H$16:$H$39,'Отчет о движении денеж. средств'!$H$43:$H$47) -> 149221.94 | I49: =SUM('Отчет о движении денеж. средств'!$I$16:$I$39,'Отчет о движении денеж. средств'!$I$43:$I$47) -> 149221.94 | J49: =SUM('Отчет о движении денеж. средств'!$J$16:$J$39,'Отчет о движении денеж. средств'!$J$43:$J$47) -> 149221.94 | K49: =SUM('Отчет о движении денеж. средств'!$K$16:$K$39,'Отчет о движении денеж. средств'!$K$43:$K$47) -> 149221.94 | L49: =SUM('Отчет о движении денеж. средств'!$L$16:$L$39,'Отчет о движении денеж. средств'!$L$43:$L$47) -> 149221.94 | M49: =SUM('Отчет о движении денеж. средств'!$M$16:$M$39,'Отчет о движении денеж. средств'!$M$43:$M$47) -> 149221.94 | N49: =SUM('Отчет о движении денеж. средств'!$N$16:$N$39,'Отчет о движении денеж. средств'!$N$43:$N$47) -> 149221.94 | O49: =SUM('Отчет о движении денеж. средств'!$O$16:$O$39,'Отчет о движении денеж. средств'!$O$43:$O$47) -> 149221.94 | P49: =SUM('Отчет о движении денеж. средств'!$P$16:$P$39,'Отчет о движении денеж. средств'!$P$43:$P$47) -> 149221.94 | R49: =SUM('Отчет о движении денеж. средств'!$R$16:$R$39,'Отчет о движении денеж. средств'!$R$43:$R$47) -> 1832663.28
B51: Денежная позиция (конец месяца) | D51: =D13-D49 -> 58000 | E51: -91221.94 | F51: -240443.88 | G51: -389665.82 | H51: -538887.76 | I51: -688109.7 | J51: -837331.64 | K51: -986553.58 | L51: -1135775.52 | M51: -1284997.46 | N51: -1434219.4 | O51: -1583441.34 | P51: -1732663.28 | R51: =R13-R49 -> -3416104.62

Sheet Доходы
A2: Таблица поступления денежных средств
A4: Заказчик | D4: № договора | E4: цена продажи | F4: затраты | G4: марж. прибыль | H4: дата предоплаты | I4: предоплата | J4: долг | K4: сумма долга | L4: дата доплаты | M4: доплата
A6: Продажи за наличный расчет
G7: =E7-F7 -> 0 | J7: =IF(K7>0,"долг",IF(K7=0,"-")) -> - | K7: =E7-I7-M7 -> 0
A8: январь | E8: =SUM(E7:E7) -> 0 | F8: =SUM(F7:F7) -> 0 | G8: =SUM(G7:G7) -> 0 | I8: =SUM(I7:I7) -> 0 | J8: =IF(K8>0,"долг",IF(K8=0,"-")) -> - | K8: =E8-I8-M8 -> 0 | M8: =SUM(M7) -> 0
G9: 0 | J9: =IF(K9>0,"долг",IF(K9=0,"-")) -> - | K9: =E9-I9-M9 -> 0
A10: февраль | E10: =SUM(E9:E9) -> 0 | F10: =SUM(F9:F9) -> 0 | G10: =SUM(G9:G9) -> 0 | I10: =SUM(I9:I9) -> 0 | J10: =IF(K10>0,"долг",IF(K10=0,"-")) -> - | K10: =E10-I10-M10 -> 0 | M10: =SUM(M9) -> 0
G11: 0 | J11: =IF(K11>0,"долг",IF(K11=0,"-")) -> - | K11: =E11-I11-M11 -> 0
A12: март | E12: =SUM(E11:E11) -> 0 | F12: =SUM(F11:F11) -> 0 | G12: =SUM(G11:G11) -> 0 | I12: =SUM(I11:I11) -> 0 | J12: =IF(K12>0,"долг",IF(K12=0,"-")) -> - | K12: =E12-I12-M12 -> 0 | M12: =SUM(M11) -> 0
G13: 0 | J13: =IF(K13>0,"долг",IF(K13=0,"-")) -> - | K13: =E13-I13-M13 -> 0
A14: апрель | E14: =SUM(E13:E13) -> 0 | F14: =SUM(F13:F13) -> 0 | G14: =SUM(G13:G13) -> 0 | I14: 0 | J14: =IF(K14>0,"долг",IF(K14=0,"-")) -> - | K14: =E14-I14-M14 -> 0 | M14: =SUM(M13) -> 0
G15: 0 | J15: =IF(K15>0,"долг",IF(K15=0,"-")) -> - | K15: =E15-I15-M15 -> 0
A16: май | E16: =SUM(E15:E15) -> 0 | F16: =SUM(F15:F15) -> 0 | G16: =SUM(G15:G15) -> 0 | I16: 0 | J16: - | K16: 0 | M16: =SUM(M15) -> 0
G17: 0 | J17: - | K17: 0
A18: июнь | E18: =SUM(E17:E17) -> 0 | F18: =SUM(F17:F17) -> 0 | G18: =SUM(G17:G17) -> 0 | I18: 0 | J18: - | K18: 0 | M18: =SUM(M17) -> 0
G19: =E19-F19 -> 0 | J19: - | K19: 0
A20: июль | E20: =SUM(E19:E19) -> 0 | F20: =SUM(F19:F19) -> 0 | G20: =SUM(G19:G19) -> 0 | I20: =SUM(I19:I19) -> 0 | J20: - | K20: =E20-I20-M20 -> 0 | M20: =SUM(M19) -> 0
G21: =E21-F21 -> 0 | J21: - | K21: 0
A22: август | E22: =SUM(E21:E21) -> 0 | F22: =SUM(F21:F21) -> 0 | G22: =SUM(G21:G21) -> 0 | I22: =SUM(I21:I21) -> 0 | J22: - | K22: =E22-I22-M22 -> 0 | M22: =SUM(M21) -> 0
G23: =E23-F23 -> 0 | J23: - | K23: =E23-I23-M23 -> 0
A24: сентябрь | E24: =SUM(E23:E23) -> 0 | F24: =SUM(F23:F23) -> 0 | G24: =SUM(G23:G23) -> 0 | I24: =SUM(I23:I23) -> 0 | J24: - | K24: =E24-I24-M24 -> 0 | M24: =SUM(M23) -> 0
G25: =E25-F25 -> 0 | J25: - | K25: =E25-I25-M25 -> 0
A26: октябрь | E26: =SUM(E25:E25) -> 0 | F26: =SUM(F25:F25) -> 0 | G26: =SUM(G25:G25) -> 0 | I26: =SUM(I25:I25) -> 0 | J26: - | K26: =E26-I26-M26 -> 0 | M26: =SUM(M25) -> 0
G27: =E27-F27 -> 0 | J27: - | K27: 0
A28: ноябрь | E28: =SUM(E27:E27) -> 0 | F28: =SUM(F27:F27) -> 0 | G28: =SUM(G27:G27) -> 0 | I28: =SUM(I27:I27) -> 0 | J28: - | K28: =E28-I28-M28 -> 0 | M28: =SUM(M27) -> 0
G29: =E29-F29 -> 0 | J29: - | K29: 0
A30: декабрь | E30: =SUM(E29:E29) -> 0 | F30: =SUM(F29:F29) -> 0 | G30: =SUM(G29:G29) -> 0 | I30: =SUM(I29:I29) -> 0 | J30: - | K30: =E30-I30-M30 -> 0 | M30: =SUM(M29) -> 0
G31: =E31-F31 -> 0 | J31: - | K31: 0
A32: Итого: | E32: =SUM(E18,E16,E14,E12,E10,E8,E20,E22,E24,E26,E28,E30) -> 0 | F32: =SUM(F18,F16,F14,F12,F10,F8,F20,F22,F24,F26,F28,F30) -> 0 | G32: =SUM(G18,G16,G14,G12,G10,G8,G20,G22,G24,G26,G28,G30) -> 0 | I32: =SUM(I18,I16,I14,I12,I10,I8,I20,I22,I24,I26,I28,I30) -> 0 | J32: - | K32: =E32-I32-M32 -> 0 | M32: =SUM(M18,M16,M14,M12,M10,M8,M20,M22,M24,M26,M28,M30) -> 0
A33: Продажи по платежным картам
G34: =E34-F34 -> 0 | J34: =IF(K34>0,"долг",IF(K34=0,"-")) -> - | K34: =E34-I34-M34 -> 0
A35: январь | E35: =SUM(E34:E34) -> 0 | F35: =SUM(F34:F34) -> 0 | G35: =SUM(G34:G34) -> 0 | I35: =SUM(I34:I34) -> 0 | J35: =IF(K35>0,"долг",IF(K35=0,"-")) -> - | K35: =E35-I35-M35 -> 0 | M35: =SUM(M34) -> 0
G36: =E36-F36 -> 0 | J36: =IF(K36>0,"долг",IF(K36=0,"-")) -> - | K36: =E36-I36-M36 -> 0
A37: февраль | E37: =SUM(E36:E36) -> 0 | F37: =SUM(F36:F36) -> 0 | G37: =SUM(G36:G36) -> 0 | I37: =SUM(I36:I36) -> 0 | J37: =IF(K37>0,"долг",IF(K37=0,"-")) -> - | K37: =E37-I37-M37 -> 0 | M37: =SUM(M36) -> 0
G38: =E38-F38 -> 0 | J38: =IF(K38>0,"долг",IF(K38=0,"-")) -> - | K38: =E38-I38-M38 -> 0
A39: март | E39: =SUM(E38:E38) -> 0 | F39: =SUM(F38:F38) -> 0 | G39: =SUM(G38:G38) -> 0 | I39: =SUM(I38:I38) -> 0 | J39: =IF(K39>0,"долг",IF(K39=0,"-")) -> - | K39: =E39-I39-M39 -> 0 | M39: =SUM(M38) -> 0
G40: =E40-F40 -> 0 | J40: =IF(K40>0,"долг",IF(K40=0,"-")) -> - | K40: =E40-I40-M40 -> 0
A41: апрель | E41: =SUM(E40:E40) -> 0 | F41: =SUM(F40:F40) -> 0 | G41: =SUM(G40:G40) -> 0 | I41: =SUM(I40:I40) -> 0 | J41: =IF(K41>0,"долг",IF(K41=0,"-")) -> - | K41: =E41-I41-M41 -> 0 | M41: =SUM(M40) -> 0
G42: =E42-F42 -> 0 | J42: =IF(K42>0,"долг",IF(K42=0,"-")) -> - | K42: =E42-I42-M42 -> 0
A43: май | E43: =SUM(E42:E42) -> 0 | F43: =SUM(F42:F42) -> 0 | G43: =SUM(G42:G42) -> 0 | I43: =SUM(I42:I42) -> 0 | J43: - | K43: 0 | M43: =SUM(M42) -> 0
G44: =E44-F44 -> 0 | J44: - | K44: 0
A45: июнь | E45: =SUM(E44:E44) -> 0 | F45: =SUM(F44:F44) -> 0 | G45: =SUM(G44:G44) -> 0 | I45: =SUM(I44:I44) -> 0 | J45: - | K45: 0 | M45: =SUM(M44) -> 0
G46: =E46-F46 -> 0 | J46: - | K46: 0
A47: июль | E47: =SUM(E46:E46) -> 0 | F47: =SUM(F46:F46) -> 0 | G47: =SUM(G46:G46) -> 0 | I47: =SUM(I46:I46) -> 0 | J47: - | K47: 0 | M47: =SUM(M46) -> 0
G48: =E48-F48 -> 0 | J48: - | K48: 0
A49: август | E49: =SUM(E48:E48) -> 0 | F49: =SUM(F48:F48) -> 0 | G49: =SUM(G48:G48) -> 0 | I49: =SUM(I48:I48) -> 0 | J49: - | K49: 0 | M49: =SUM(M48) -> 0
G50: =E50-F50 -> 0 | J50: - | K50: =E50-I50-M50 -> 0
A51: сентябрь | E51: =SUM(E50:E50) -> 0 | F51: =SUM(F50:F50) -> 0 | G51: =SUM(G50:G50) -> 0 | I51: =SUM(I50:I50) -> 0 | J51: - | K51: =E51-I51-M51 -> 0 | M51: =SUM(M50) -> 0
G52: =E52-F52 -> 0 | J52: - | K52: =E52-I52-M52 -> 0
A53: октябрь | E53: =SUM(E52:E52) -> 0 | F53: =SUM(F52:F52) -> 0 | G53: =SUM(G52:G52) -> 0 | I53: =SUM(I52:I52) -> 0 | J53: - | K53: 0 | M53: =SUM(M52) -> 0
G54: =E54-F54 -> 0 | J54: - | K54: 0
A55: ноябрь | E55: =SUM(E54:E54) -> 0 | F55: =SUM(F54:F54) -> 0 | G55: =SUM(G54:G54) -> 0 | I55: =SUM(I54:I54) -> 0 | J55: - | K55: 0 | M55: =SUM(M54) -> 0
G56: =E56-F56 -> 0 | J56: - | K56: 0
A57: декабрь | E57: =SUM(E56:E56) -> 0 | F57: =SUM(F56:F56) -> 0 | G57: =SUM(G56:G56) -> 0 | I57: =SUM(I56:I56) -> 0 | J57: - | K57: 0 | M57: =SUM(M56) -> 0
G58: =E58-F58 -> 0 | J58: - | K58: =E58-I58-M58 -> 0
A59: Итого: | E59: =SUM(E45,E43,E41,E39,E37,E35) -> 0 | F59: =SUM(F45,F43,F41,F39,F37,F35) -> 0 | G59: =SUM(G45,G43,G41,G39,G37,G35) -> 0 | I59: =SUM(I45,I43,I41,I39,I37,I35,I47,I49,I51,I53,I55,I57) -> 0 | J59: - | K59: =E59-I59-M59 -> 0 | M59: =SUM(M45,M43,M41,M39,M37,M35,M47,M49,M51,M53,M55,M57) -> 0
A60: Поступления с р/с
G61: =E61-F61 -> 0 | J61: =IF(K61>0,"долг",IF(K61=0,"-")) -> - | K61: =E61-I61-M61 -> 0
A62: январь | E62: =SUM(E61:E61) -> 0 | F62: =SUM(F61:F61) -> 0 | G62: =SUM(G61:G61) -> 0 | I62: =SUM(I61:I61) -> 0 | J62: =IF(K62>0,"долг",IF(K62=0,"-")) -> - | K62: =E62-I62-M62 -> 0 | M62: =SUM(M61) -> 0
G63: =E63-F63 -> 0 | J63: =IF(K63>0,"долг",IF(K63=0,"-")) -> - | K63: =E63-I63-M63 -> 0
A64: февраль | E64: =SUM(E63:E63) -> 0 | F64: =SUM(F63:F63) -> 0 | G64: =SUM(G63:G63) -> 0 | I64: =SUM(I63:I63) -> 0 | J64: =IF(K64>0,"долг",IF(K64=0,"-")) -> - | K64: =E64-I64-M64 -> 0 | M64: =SUM(M63) -> 0
G65: =E65-F65 -> 0 | J65: =IF(K65>0,"долг",IF(K65=0,"-")) -> - | K65: =E65-I65-M65 -> 0
A66: март | E66: =SUM(E65:E65) -> 0 | F66: =SUM(F65:F65) -> 0 | G66: =SUM(G65:G65) -> 0 | I66: =SUM(I65:I65) -> 0 | J66: =IF(K66>0,"долг",IF(K66=0,"-")) -> - | K66: =E66-I66-M66 -> 0 | M66: =SUM(M65) -> 0
G67: =E67-F67 -> 0 | J67: =IF(K67>0,"долг",IF(K67=0,"-")) -> - | K67: =E67-I67-M67 -> 0
A68: апрель | E68: =SUM(E67:E67) -> 0 | F68: =SUM(F67:F67) -> 0 | G68: =SUM(G67:G67) -> 0 | I68: =SUM(I67:I67) -> 0 | J68: =IF(K68>0,"долг",IF(K68=0,"-")) -> - | K68: =E68-I68-M68 -> 0 | M68: =SUM(M67) -> 0
G69: =E69-F69 -> 0 | J69: =IF(K69>0,"долг",IF(K69=0,"-")) -> - | K69: =E69-I69-M69 -> 0
A70: май | E70: =SUM(E69:E69) -> 0 | F70: =SUM(F69:F69) -> 0 | G70: =SUM(G69:G69) -> 0 | I70: =SUM(I69:I69) -> 0 | J70: - | K70: 0 | M70: =SUM(M69) -> 0
G71: =E71-F71 -> 0 | J71: - | K71: 0
A72: июнь | E72: =SUM(E71:E71) -> 0 | F72: =SUM(F71:F71) -> 0 | G72: =SUM(G71:G71) -> 0 | I72: =SUM(I71:I71) -> 0 | J72: - | K72: 0 | M72: =SUM(M71) -> 0
G73: =E73-F73 -> 0 | J73: - | K73: 0
A74: июль | E74: =SUM(E73:E73) -> 0 | F74: =SUM(F73:F73) -> 0 | G74: =SUM(G73:G73) -> 0 | I74: =SUM(I73:I73) -> 0 | J74: - | K74: 0 | M74: =SUM(M73) -> 0
G75: =E75-F75 -> 0 | J75: - | K75: 0
A76: август | E76: =SUM(E75:E75) -> 0 | F76: =SUM(F75:F75) -> 0 | G76: =SUM(G75:G75) -> 0 | I76: =SUM(I75:I75) -> 0 | J76: - | K76: 0 | M76: =SUM(M75) -> 0
G77: =E77-F77 -> 0 | J77: - | K77: =E77-I77-M77 -> 0
A78: сентябрь | E78: =SUM(E77:E77) -> 0 | F78: =SUM(F77:F77) -> 0 | G78: =SUM(G77:G77) -> 0 | I78: =SUM(I77:I77) -> 0 | J78: - | K78: =E78-I78-M78 -> 0 | M78: =SUM(M77) -> 0
G79: =E79-F79 -> 0 | J79: - | K79: =E79-I79-M79 -> 0
A80: октябрь | E80: =SUM(E79:E79) -> 0 | F80: =SUM(F79:F79) -> 0 | G80: =SUM(G79:G79) -> 0 | I80: =SUM(I79:I79) -> 0 | J80: - | K80: 0 | M80: =SUM(M79) -> 0
G81: =E81-F81 -> 0 | J81: - | K81: 0
A82: ноябрь | E82: =SUM(E81:E81) -> 0 | F82: =SUM(F81:F81) -> 0 | G82: =SUM(G81:G81) -> 0 | I82: =SUM(I81:I81) -> 0 | J82: - | K82: 0 | M82: =SUM(M81) -> 0
G83: =E83-F83 -> 0 | J83: - | K83: 0
A84: декабрь | E84: =SUM(E83:E83) -> 0 | F84: =SUM(F83:F83) -> 0 | G84: =SUM(G83:G83) -> 0 | I84: =SUM(I83:I83) -> 0 | J84: - | K84: 0 | M84: =SUM(M83) -> 0
G85: =E85-F85 -> 0 | J85: - | K85: =E85-I85-M85 -> 0
A86: Итого: | E86: =SUM(E72,E70,E68,E66,E64,E62) -> 0 | F86: =SUM(F72,F70,F68,F66,F64,F62) -> 0 | G86: =SUM(G72,G70,G68,G66,G64,G62) -> 0 | I86: =SUM(I72,I70,I68,I66,I64,I62,I74,I76,I78,I80,I82,I84) -> 0 | J86: - | K86: =E86-I86-M86 -> 0 | M86: =SUM(M72,M70,M68,M66,M64,M62,M74,M76,M78,M80,M82,M84) -> 0
A87: Итого по всем поступлениям: | E87: =E86+E59+E32 -> 0 | F87: =F86+F59+F32 -> 0 | G87: =G86+G59+G32 -> 0 | I87: =I86+I59+I32 -> 0 | J87: =IF(K87>0,"долг",IF(K87=0,"-")) -> - | K87: =E87-I87-M87 -> 0 | M87: =M86+M59+M32 -> 0

Sheet Расходы
A4: Таблица расходов денежных средств
A6: Дата списание с р/с | C6: Поставщик | D6: Сумма, руб. | E6: Статья
A7: 2019-03-14 | C7: Администрация Московского муниципального образования Тюменского района Тюменской области | D7: 500 | E7: пени
A8: 2019-03-14 | C8: Администрация Московского муниципального образования Тюменского района Тюменской области | D8: 672 | E8: пени
A9: 2019-03-15 | C9: Администрация Московского муниципального образования Тюменского района Тюменской области | D9: 1160 | E9: пени
A10: 2019-03-16 | C10: Администрация Московского муниципального образования Тюменского района Тюменской области | D10: 2178 | E10: пени
A11: 2019-01-14 | C11: АДВ-сервис ООО | D11: 5000 | E11: реклама
A12: 2019-02-08 | C12: АДВ-сервис ООО | D12: 5000 | E12: реклама
A13: 2019-02-27 | C13: АДВ-сервис ООО | D13: 5000 | E13: реклама
A14: 2019-03-12 | C14: АДВ-сервис ООО | D14: 5000 | E14: реклама
A15: 2019-04-01 | C15: АДВ-сервис ООО | D15: 5000 | E15: реклама
A16: 2019-04-11 | C16: АДВ-сервис ООО | D16: 5000 | E16: реклама
A17: 2019-04-22 | C17: АДВ-сервис ООО | D17: 5000 | E17: реклама
A18: 2019-05-14 | C18: АДВ-сервис ООО | D18: 5000 | E18: реклама
A19: 2019-05-20 | C19: АДВ-сервис ООО | D19: 5000 | E19: реклама
A20: 2019-05-28 | C20: АДВ-сервис ООО | D20: 6000 | E20: реклама
A21: 2019-06-03 | C21: АДВ-сервис ООО | D21: 6000 | E21: реклама
A22: 2019-07-03 | C22: АДВ-сервис ООО | D22: 8000 | E22: реклама
A23: 2019-08-07 | C23: АДВ-сервис ООО | D23: 4000 | E23: реклама
A24: 2019-08-26 | C24: АДВ-сервис ООО | D24: 6000 | E24: реклама
A25: 2019-09-23 | C25: АДВ-сервис ООО | D25: 6000 | E25: реклама
A26: 2019-10-01 | C26: АДВ-сервис ООО | D26: 6000 | E26: реклама
A27: 2019-10-29 | C27: АДВ-сервис ООО | D27: 8000 | E27: реклама
A28: 2019-11-11 | C28: АДВ-сервис ООО | D28: 6000 | E28: реклама
A29: 2019-11-18 | C29: АДВ-сервис ООО | D29: 6000 | E29: реклама
A30: 2019-11-29 | C30: ГеоГранд ООО | D30: 9984 | E30: пени
A31: 2019-12-27 | C31: Горбова Мария Викторовна ИП | D31: 330000 | E31: обнал
A32: 2019-04-16 | C32: Империя ООО | D32: 4900 | E32: -
A33: 2019-02-05 | C33: ИП Алексеев Евгений Юрьевич | D33: 6130 | E33: заправка картриджей
A34: 2019-02-05 | C34: ИП Алексеев Евгений Юрьевич | D34: 3100 | E34: заправка картриджей
A35: 2019-09-06 | C35: ИП Алексеев Евгений Юрьевич | D35: 2230 | E35: заправка картриджей
A36: 2019-11-08 | C36: ИП Алексеев Евгений Юрьевич | D36: 800 | E36: заправка картриджей
A37: 2019-02-05 | C37: ИП Одинцова Нина Ивановна | D37: 21000 | E37: аренда
A38: 2019-04-16 | C38: ИП Одинцова Нина Ивановна | D38: 18000 | E38: аренда
A39: 2019-04-16 | C39: ИП Одинцова Нина Ивановна | D39: 21000 | E39: аренда
A40: 2019-05-21 | C40: ИП Одинцова Нина Ивановна | D40: 21000 | E40: аренда
A41: 2019-06-17 | C41: ИП Одинцова Нина Ивановна | D41: 21000 | E41: аренда
A42: 2019-07-03 | C42: ИП Одинцова Нина Ивановна | D42: 21000 | E42: аренда
A43: 2019-09-03 | C43: ИП Одинцова Нина Ивановна | D43: 21000 | E43: аренда
A44: 2019-06-18 | C44: Касаргинский источник ООО | D44: 1880 | E44: вода
A45: 2019-09-06 | C45: Касаргинский источник ООО | D45: 378 | E45: вода
A46: 2019-09-30 | C46: Касаргинский источник ООО | D46: 378 | E46: вода
A47: 2019-10-10 | C47: Касаргинский источник ООО | D47: 378 | E47: вода
A48: 2019-11-21 | C48: Касаргинский источник ООО | D48: 1952 | E48: вода
A49: 2019-12-18 | C49: Касаргинский источник ООО | D49: 537 | E49: вода
A50: 2019-09-10 | C50: Клякса ООО | D50: 2110 | E50: реклама
A51: 2019-10-31 | C51: Клякса ООО | D51: 2000 | E51: реклама
A52: 2019-08-22 | C52: КОМПАНИЯ СИБИРЬ ООО | D52: 25000
A53: 2019-09-24 | C53: КОМПАНИЯ СИБИРЬ ООО | D53: 16670
A54: 2019-10-18 | C54: КОМПАНИЯ СИБИРЬ ООО | D54: 25000
A55: 2019-11-22 | C55: КОМПАНИЯ СИБИРЬ ООО | D55: 25000
A56: 2019-12-24 | C56: КОМПАНИЯ СИБИРЬ ООО | D56: 25000
A57: 2019-07-12 | C57: Купол ООО | D57: 8500
A58: 2019-02-22 | C58: МЛТрейд.РУ | D58: 2800
A59: 2019-10-07 | C59: НАЦИОНАЛЬНЫЙ ЦЕНТР СЕРТИФИКАЦИИ ООО | D59: 37000 | E59: СРО
A60: 2019-01-14 | C60: ООО "А-Сити" | D60: 1500 | E60: Интернет
A61: 2019-02-14 | C61: ООО "А-Сити" | D61: 1500 | E61: Интернет
A62: 2019-03-06 | C62: ООО "А-Сити" | D62: 1500 | E62: Интернет
A63: 2019-03-28 | C63: ООО "А-Сити" | D63: 1500 | E63: Интернет
A64: 2019-03-28 | C64: ООО "А-Сити" | D64: 3000 | E64: Интернет
A65: 2019-05-06 | C65: ООО "А-Сити" | D65: 1500 | E65: Интернет
A66: 2019-07-03 | C66: ООО "А-Сити" | D66: 1500 | E66: Интернет
A67: 2019-08-02 | C67: ООО "А-Сити" | D67: 1500 | E67: Интернет
A68: 2019-09-02 | C68: ООО "А-Сити" | D68: 1500 | E68: Интернет
A69: 2019-03-14 | C69: ООО "РК" | D69: 4400 | E69: ЭЦП
A70: 2019-04-04 | C70: ООО "РК" | D70: 2000 | E70: ЭЦП
A71: 2019-04-24 | C71: ООО "РК" | D71: 8000 | E71: ЭЦП
A72: 2019-01-10 | C72: ООО "ТехноКад" | D72: 1200 | E72: ПО
A73: 2019-03-13 | C73: ООО "ТехноКад" | D73: 3304 | E73: ПО
A74: 2019-04-26 | C74: ООО "ТехноКад" | D74: 700 | E74: ПО
A75: 2019-04-26 | C75: ООО "ТехноКад" | D75: 700 | E75: ПО
A76: 2019-04-26 | C76: ООО "ТехноКад" | D76: 8500 | E76: ПО
A77: 2019-04-26 | C77: ООО "ТехноКад" | D77: 8500 | E77: ПО
A78: 2019-06-04 | C78: ООО "ТехноКад" | D78: 59 | E78: ПО
A79: 2019-07-04 | C79: ООО "ТехноКад" | D79: 79 | E79: ПО
A80: 2019-08-02 | C80: ООО "ТехноКад" | D80: 85 | E80: ПО
A81: 2019-12-23 | C81: ПРОХОРЕНКО ВЛАДИМИР СЕРГЕЕВИЧ ИП | D81: 240000 | E81: Геодезия
A82: 2019-04-08 | C82: ПФ СКБ Контур АО | D82: 4500 | E82: БГ
A83: 2019-06-18 | C83: Р-Консалтинг ООО | D83: 6000 | E83: Закупка
A84: 2019-08-21 | C84: Р-Консалтинг ООО | D84: 6000 | E84: Закупка
A85: 2019-09-16 | C85: Р-Консалтинг ООО | D85: 6000 | E85: Закупка
A86: 2019-10-11 | C86: Р-Консалтинг ООО | D86: 6000 | E86: Закупка
A87: 2019-11-26 | C87: Р-Консалтинг ООО | D87: 4000 | E87: Закупка
A88: 2019-06-18 | C88: Редакция газеты Тюменский курьер АО | D88: 2000 | E88: Публикация
A89: 2019-06-25 | C89: Редакция газеты Тюменский курьер АО | D89: 2000 | E89: Публикация
A90: 2019-06-28 | C90: Редакция газеты Тюменский курьер АО | D90: 2000 | E90: Публикация
A91: 2019-07-16 | C91: Редакция газеты Тюменский курьер АО | D91: 2000 | E91: Публикация
A92: 2019-10-29 | C92: РУССКАЯ КОМПАНИЯ ООО | D92: 2 | E92: Интернет/телефония
A93: 2019-10-29 | C93: РУССКАЯ КОМПАНИЯ ООО | D93: 305 | E93: Интернет/телефония
A94: 2019-11-20 | C94: РУССКАЯ КОМПАНИЯ ООО | D94: 366 | E94: Интернет/телефония
A95: 2019-09-04 | C95: Русская компания Север ООО | D95: 2000 | E95: Интернет/телефония
A96: 2019-10-09 | C96: Русская компания Север ООО | D96: 3008 | E96: Интернет/телефония
A97: 2019-11-20 | C97: Русская компания Север ООО | D97: 2500 | E97: Интернет/телефония
A98: 2019-12-23 | C98: Русская компания Север ООО | D98: 2500 | E98: Интернет/телефония
A99: 2019-10-15 | C99: Сократова Ксения Игоревна ИП | D99: 440
A100: 2019-12-25 | C100: Сократова Ксения Игоревна ИП | D100: 1210
A101: 2019-09-09 | C101: Союз "Кадастровые инженеры" | D101: 9300 | E101: СРО КИ
A102: 2019-09-11 | C102: Союз "Кадастровые инженеры" | D102: 9300 | E102: СРО КИ
A103: 2019-08-16 | C103: Терминал-Рощино АО | D103: 5000 | E103: Сеть базовых станций
A104: 2019-12-03 | C104: Терминал-Рощино АО | D104: 3432 | E104: Сеть базовых станций
A105: 2019-12-04 | C105: ТК КАН-Тэррия ООО | D105: 5054 | E105: Канцелярка
A106: 2019-12-02 | C106: ТЭК-Торг АО | D106: 5400 | E106: участие
A107: 2019-10-22 | C107: Тюменский Межрегиональный Центр Охраны Труда АНО | D107: 4900 | E107: Корочки
A108: 2019-10-25 | C108: Тюменский Межрегиональный Центр Охраны Труда АНО | D108: 4900 | E108: Корочки
A109: 2019-12-10 | C109: Тюменский Межрегиональный Центр Охраны Труда АНО | D109: 4900 | E109: Корочки
A110: 2019-03-13 | C110: УФК по г. Москве (ФГБУ ФКП Росреестра , л/с 20736У94380) | D110: 2000 | E110: Консультация
A111: 2019-01-15 | C111: УФК по Тюменской области (филиал ФГБУ "ФКП Росреестра" по Тюменской области, л/с20676У40600) | D111: 1280 | E111: Консультация
A112: 2019-02-22 | C112: УФК по Тюменской области (филиал ФГБУ "ФКП Росреестра" по Тюменской области, л/с20676У40600) | D112: 1280 | E112: Консультация
A113: 2019-12-03 | C113: УФК по Тюменской области (филиал ФГБУ "ФКП Росреестра" по Тюменской области, л/с20676У40600) | D113: 1280 | E113: Консультация
A114: 2019-05-13 | C114: Фабрикант.ру ООО | D114: 11900 | E114: закупка
A115: 2019-02-14 | C115: Филиал Уральский ООО ДНС Ритейл | D115: 2850 | E115: Оргтехника
A116: 2019-08-26 | C116: Хэдхантер ООО | D116: 260 | E116: объявление
A117: 2019-08-26 | C117: Хэдхантер ООО | D117: 940 | E117: объявление
A118: 2019-06-30 | C118: Воронин Д.О | D118: 19000 | E118: выдача нал
A119: 2019-02-20 | C119: Колчанов А.С | D119: 7003 | E119: выдача нал
D120: =SUM(D7:D119) -> 1232574
C383: Деньги у подотчетных лиц
C384: Прочие
C385: Авансовый отчет 0000-000001 от 31.03.2019 3:59:59 | D385: Материалы | F385: 13283
C386: Авансовый отчет 0000-000002 от 30.09.2019 15:59:59 | D386: Материалы | F386: 298590
C387: Авансовый отчет 0000-000003 от 31.12.2019 15:59:59 | D387: Материалы | F387: 33751
C388: Прочие
C389: Авансовый отчет 0000-000001 от 31.03.2019 3:59:59 | D389: Общехозяйственные расходы | F389: 19381
C390: Авансовый отчет 0000-000002 от 30.09.2019 15:59:59 | D390: Общехозяйственные расходы | F390: 5969
C391: Авансовый отчет 0000-000003 от 31.12.2019 15:59:59 | D391: Общехозяйственные расходы | F391: 251
F392: =SUM(F18:F391) -> 371225
